Cogmind - Beta 11.1 @@@ ROGUE MODE // 2022.04.24 @ 16:44:55 Player: Az Result: Destroyed by Y-45 Defender with Beam Rifle Performance ------------- Evolutions (2) 1000 Regions Visited (5) 1000 Robots Destroyed (15) 75 Value Destroyed (394) 394 Prototype IDs (23) 460 Alien Tech Used (0) 0 Bonus (314) 314 TOTAL SCORE: 3243 Bonus ------- Follower Combat Kills 14 Aligned with FarCom 300 Cogmind --------- Core Integrity 0/550 Matter 300/300 Energy 100/100 System Corruption 0% Temperature Cool (33) Movement Hovering (320) Ox3 Location -8/Materials Parts ------- > --- POWER (1) -------- Backup Power I > --- PROPULSION (2) --- Backup Propulsion I > --- UTILITY (4) ------ Large Storage Unit > --- WEAPON (4) ------- Backup Laser I Backup Laser I > --- INVENTORY (15) --- Light Ion Engine Large Battery (200) Large Battery (200) Superbattery (1500) Peak State ------------ > --- POWER ------------ Light Ion Engine > --- PROPULSION ------- Light Treads Armored Treads > --- UTILITY ---------- Large Storage Unit Superbattery Improved Sensor Array > --- WEAPON ----------- Heavy EM Pulse Gun Light EM Pulse Cannon Light Assault Rifle Light Assault Rifle > --- INVENTORY -------- Light Ion Engine Light Treads Compact Wheel Large Battery Large Battery [Rating: 25] Favorites ----------- Power Light Ion Engine Engine Light Ion Engine Propulsion Aluminum Leg Treads Armored Treads Leg Aluminum Leg Wheel Compact Wheel Hover Unit Backup Propulsion I Utility Small Storage Unit Device Improved Sensor Array Storage Small Storage Unit Protection Utility Shielding Weapon Assault Rifle Energy Gun Small Laser Energy Cannon Light EM Pulse Cannon Ballistic Gun Assault Rifle Build | -11 -10 -10 -10 -9 -8 ------- Run | Scr Mat Min Exi Min Mat Slots Evolved 4 | . . . . . 4 Power . | . . . . . . Propulsion . | . . . . . . Utility 2 | . . . . . 2 Weapon 2 | . . . . . 2 Parts Attached 21 | 6 1 . 1 3 10 Power 1 | 1 . . . . . Engine 1 | 1 . . . . . Core . | . . . . . . Reactor . | . . . . . . Propulsion 6 | 2 . . . . 4 Treads 3 | . . . . . 3 Leg 2 | 2 . . . . . Wheel 1 | . . . . . 1 Hover . | . . . . . . Flight . | . . . . . . Utility 5 | 1 1 . 1 . 2 Device 1 | . . . . . 1 Storage 3 | 1 . . 1 . 1 Processor . | . . . . . . Hackware . | . . . . . . Protection 1 | . 1 . . . . Artifact . | . . . . . . Weapon 9 | 2 . . . 3 4 Energy Gun 4 | 1 . . . 2 1 Energy Cannon 1 | . . . . 1 . Ballistic Gun 4 | 1 . . . . 3 Ballistic Cannon . | . . . . . . Launcher . | . . . . . . Special Weapon . | . . . . . . Impact Weapon . | . . . . . . Slashing Weapon . | . . . . . . Piercing Weapon . | . . . . . . Special Melee Weapon . | . . . . . . Unidentified Prototypes 1 | . . . 1 . . Parts Lost 15 | . . . . . 15 Power 2 | . . . . . 2 Propulsion 6 | . . . . . 6 Utility 1 | . . . . . 1 Weapon 6 | . . . . . 6 Highest Loss Streak 10 | . . . . . 10 To Critical Strikes . | . . . . . . Average Slot Usage (%) 95 | . 97 100 100 100 66 Engine 12 | . 14 14 14 14 6 Treads 1 | . . . . . 12 Leg 24 | . 28 28 28 28 3 Storage 21 | . 14 14 18 28 16 Protection 4 | . 11 14 9 . . Energy Gun 13 | . 14 14 14 14 8 Energy Cannon 1 | . . . . 1 6 Ballistic Gun 12 | . 14 14 14 12 6 Naked Turns . | . . . . . . Heaviest Build 37 | 11 12 12 15 19 37 Greatest Support 40 | 20 20 20 20 20 40 Greatest Overweight (x) 6 | . . . . . 6 Average Overweight (x) . | . . . . . . Largest Inventory Capacity 15 | 8 8 8 8 8 15 Average Capacity 8 | 6 8 8 8 8 14 Most Carried 9 | 6 8 8 8 8 9 Average Carried 7 | 4 6 8 7 7 5 Final Capacity 15 | 8 8 8 8 8 15 Final Carried 8 | 6 8 8 7 8 4 Class Distribution -------------------- 92% | Mutant 7% | Skirmisher Dominant Class ---------------- Mutant | -10/Materials Mutant | -10/Mines Mutant | -10/Exiles Mutant | -9/Mines Skirmisher | -8/Materials Resources | -11 -10 -10 -10 -9 -8 ----------- Run | Scr Mat Min Exi Min Mat Matter Collected 401 | 206 . . . 111 84 Remotely . | . . . . . . Salvage Created 575 | . . . . 73 502 Parts 30 | . . . . 3 27 Haulers Intercepted . | . . . . . . Recyclers Shooed . | . . . . . . Parts Field Recycled . | . . . . . . Retrieved Matter . | . . . . . . Parts Self-Destructed . | . . . . . . Prevented . | . . . . . . Kills | -11 -10 -10 -10 -9 -8 ------- Run | Scr Mat Min Exi Min Mat Combat Hostiles Destroyed 12 | . . . . . 12 Guns 9 | . . . . . 9 Cannons 1 | . . . . . 1 AOE 1 | . . . . . 1 Classes Destroyed 5 | . . . . 1 4 Builder 2 | . . . . . 2 Recycler 1 | . . . . 1 . Swarmer 5 | . . . . . 5 Grunt 5 | . . . . . 5 Sentry 2 | . . . . . 2 Best Kill Streak 7 | . . . . 1 7 Combat Bots Only 6 | . . . . . 6 Max Kills in Single Turn 2 | . . . . 1 2 Gunslinging . | . . . . . . Exploded 1 | . . . . . 1 Melee . | . . . . . . Uniques/NPCs Destroyed . | . . . . . . Combat | -11 -10 -10 -10 -9 -8 -------- Run | Scr Mat Min Exi Min Mat Damage Taken 2096 | . . 16 . . 2080 Core 556 | . . . . . 556 Absorbed by Shields . | . . . . . . Core Remaining (%) 100 | 100 . . . 100 . Volleys Fired 33 | . . 1 . 2 30 Largest 4 | . . 2 . 2 4 Hottest 141 | . . 60 . 65 141 Shots Fired 74 | . . 2 . 4 68 Gun 65 | . . 2 . 4 59 Cannon 9 | . . . . . 9 Launcher . | . . . . . . Special . | . . . . . . Kinetic 30 | . . 1 . 2 27 Thermal 20 | . . 1 . . 19 Explosive . | . . . . . . Electromagnetic 24 | . . . . 2 22 Robot Hit Streak 9 | . . . . 2 9 Robot Miss Streak 3 | . . 2 . 3 3 Penetration Max . | . . . . . . Secondary Targets 1 | . . . . . 1 Max Gunslinging Chain 1 | . . . . . 1 Shots Hit Robots 51 | . . . . 2 49 Core Hits 24 | . . . . 1 23 Critical Kills . | . . . . . . Critical Parts Destroyed 1 | . . . . . 1 Critical Strikes 2 | . . . . . 2 Burn 1 | . . . . . 1 Destroy 1 | . . . . . 1 Melee Attacks . | . . . . . . Impact . | . . . . . . Slashing . | . . . . . . Piercing . | . . . . . . Sneak Attacks . | . . . . . . Combat Hostiles . | . . . . . . Follow-up Attacks . | . . . . . . Damage Inflicted 680 | . . . . 37 643 Guns 497 | . . . . 28 469 Cannons 85 | . . . . . 85 Explosions 89 | . . . . . 89 Melee . | . . . . . . Ramming 9 | . . . . 9 . Kinetic 167 | . . . . 11 156 Thermal 258 | . . . . . 258 Explosive . | . . . . . . Electromagnetic 246 | . . . . 17 229 Impact . | . . . . . . Slashing . | . . . . . . Piercing . | . . . . . . Highest Corruption . | . . . . . . Average Corruption . | . . . . . . Corruption Purged . | . . . . . . Corruption Blocked . | . . . . . . Overload Shots . | . . . . . . Overflow Damage . | . . . . . . Projectiles . | . . . . . . Explosions . | . . . . . . Melee . | . . . . . . Knockbacks . | . . . . . . Impact . | . . . . . . Kinetic . | . . . . . . Secondary . | . . . . . . Self-Inflicted Damage . | . . . . . . Shots . | . . . . . . Rammed . | . . . . . . Targets Rammed 1 | . . . . 1 . Kicked 1 | . . . . 1 . Crushed . | . . . . . . Highest Temperature 271 | . . . . 6 271 Average Temperature 70 | . . . . 3 74 Received Heat Transfer 999 | . . . . . 999 Siege Activations . | . . . . . . Robots Corrupted . | . . . . . . Combat Hostiles . | . . . . . . Parts Fried . | . . . . . . Impact Corruptions . | . . . . . . Robots Melted 1 | . . . . . 1 Combat Hostiles 1 | . . . . . 1 Parts Melted 6 | . . . . . 6 Heat Transferred 803 | . . . . . 803 Parts Sabotaged . | . . . . . . Parts Stolen . | . . . . . . Parts Stripped . | . . . . . . Power Chain Reactions 1 | . . . . . 1 Missiles Intercepted . | . . . . . . Alert | -11 -10 -10 -10 -9 -8 ------- Run | Scr Mat Min Exi Min Mat Peak Influence 267 | . 7 2 . 5 267 Initial 2 | . . 2 . . 1 Average 21 | . 5 2 . . 88 Maximum Alert Level 1 | . . . . . 1 Low Security (%) 95 | 100 100 100 . 100 81 Level 1 4 | . . . . . 18 Level 2 . | . . . . . . Level 3 . | . . . . . . Level 4 . | . . . . . . Level 5 . | . . . . . . High Security . | . . . . . . Max Security . | . . . . . . Squads Dispatched 5 | . 2 . . . 3 Investigation 1 | . 1 . . . . Extermination . | . . . . . . Reinforcement 2 | . 1 . . . 1 Assault . | . . . . . . Garrison 2 | . . . . . 2 Intercept . | . . . . . . Searches Triggered . | . . . . . . Construction Impeded . | . . . . . . Haulers Reinforced . | . . . . . . Active Scanning Responses . | . . . . . . Cargo Convoy Interrupts . | . . . . . . Stealth | -11 -10 -10 -10 -9 -8 --------- Run | Scr Mat Min Exi Min Mat Distress Signals 6 | . 1 . . . 5 Communications Jammed . | . . . . . . Distress Signals . | . . . . . . Times Spotted 31 | . . 3 . . 28 Peak Tracking Total 13 | . . 3 . . 13 Tactical Retreats 3 | . . . . . 3 Traps | -11 -10 -10 -10 -9 -8 ------- Run | Scr Mat Min Exi Min Mat Traps Triggered . | . . . . . . Indirectly . | . . . . . . Trap Hack Attempts . | . . . . . . Triggered . | . . . . . . Disarmed . | . . . . . . Reprogrammed . | . . . . . . Reused . | . . . . . . Traps Extracted . | . . . . . . Installed . | . . . . . . Triggered . | . . . . . . Machines | -11 -10 -10 -10 -9 -8 ---------- Run | Scr Mat Min Exi Min Mat Machines Disabled . | . . . . . . Max in Single Turn . | . . . . . . Machines Sabotaged . | . . . . . . Garrisons Compromised . | . . . . . . Overloaded Fab Kills . | . . . . . . Hacking | -11 -10 -10 -10 -9 -8 --------- Run | Scr Mat Min Exi Min Mat Machines Accessed 7 | . 1 . 5 . 1 Terminals 1 | . 1 . . . . Fabricators . | . . . . . . Repair Stations 1 | . . . . . 1 Recycling Units . | . . . . . . Scanalyzers . | . . . . . . Garrison Access . | . . . . . . Total Hacks 56 | . 3 . 50 . 3 Successful 54 | . 2 . 50 . 2 Failed 2 | . 1 . . . 1 Catastrophic . | . . . . . . Database Lockouts . | . . . . . . Manual 3 | . . . 3 . . Terminals 3 | . 3 . . . . Fabricators . | . . . . . . Repair Stations 3 | . . . . . 3 Recycling Units . | . . . . . . Scanalyzers . | . . . . . . Garrison Access . | . . . . . . Terminal Hacks 52 | . 2 . 50 . . Record 51 | . 2 . 49 . . EX-Prototype ID Bank 1 | . . . 1 . . Fabricator Hacks . | . . . . . . Repair Station Hacks 2 | . . . . . 2 Refit 2 | . . . . . 2 Recycling Unit Hacks . | . . . . . . Scanalyzer . | . . . . . . Garrison Access Hacks . | . . . . . . Unauthorized Hacks . | . . . . . . Terminals . | . . . . . . Fabricators . | . . . . . . Repair Stations . | . . . . . . Recycling Units . | . . . . . . Scanalyzers . | . . . . . . Garrison Access . | . . . . . . Data Cores Recovered . | . . . . . . Used . | . . . . . . Hacking Detections 2 | . 1 . . . 1 Full Trace Events 1 | . . . . . 1 Feedback Events . | . . . . . . Feedback Blocked . | . . . . . . Robot Schematics Acquired . | . . . . . . Robots Built . | . . . . . . Authchips . | . . . . . . Time . | . . . . . . Total Robot Build Rating . | . . . . . . Part Schematics Acquired . | . . . . . . Parts Built . | . . . . . . Authchips . | . . . . . . Time . | . . . . . . Total Part Build Rating . | . . . . . . Parts Repaired . | . . . . . . Time . | . . . . . . Parts Recycled . | . . . . . . Recycled Matter . | . . . . . . Retrieved Matter . | . . . . . . Retrieved Components . | . . . . . . Parts Scanalyzed . | . . . . . . Part Schematics Acquired . | . . . . . . Parts Damaged . | . . . . . . Bothacking | -11 -10 -10 -10 -9 -8 ------------ Run | Scr Mat Min Exi Min Mat Used RIF Installer . | . . . . . . Robots Hacked . | . . . . . . Non-combat . | . . . . . . Combat . | . . . . . . Robot Hacks Applied . | . . . . . . Relay Couplers Released . | . . . . . . Fabnet Peak Effective % . | . . . . . . Robots Rewired . | . . . . . . Allies Hacked . | . . . . . . Hacks Repelled . | . . . . . . Allies | -11 -10 -10 -10 -9 -8 -------- Run | Scr Mat Min Exi Min Mat Total Allies 3 | . . . . 3 . Largest Group 3 | . . . . 3 3 Highest-Rated Group 40 | . . . . 40 40 Highest-Rated Ally 16 | . . . . 16 16 Total Orders . | . . . . . . Ally Attacks 10 | . . . . . 10 Total Damage 56 | . . . . . 56 Kills 2 | . . . . . 2 Allies Corrupted . | . . . . . . Allies Melted . | . . . . . . Intel | -11 -10 -10 -10 -9 -8 ------- Run | Scr Mat Min Exi Min Mat Robot Analysis Total . | . . . . . . Derelict Logs Recovered 2 | . . 1 . 1 . Drone Launches . | . . . . . . Drone Recoveries . | . . . . . . Exploration | -11 -10 -10 -10 -9 -8 ------------- Run | Scr Mat Min Exi Min Mat Turns Passed 2953 | 75 132 97 1135 1093 421 Spaces Moved 2175 | 56 102 75 944 820 178 Core 16 | 11 . . . . 5 Treads 116 | . . . . . 116 Legs 2042 | 45 102 75 944 820 56 Wheels 1 | . . . . . 1 Hover . | . . . . . . Flight . | . . . . . . Fastest Speed 50 | 50 120 120 120 120 115 Average Speed 123 | 106 120 120 120 120 163 Slowest Speed 350 | 120 120 120 120 120 350 Overloaded Moves . | . . . . . . Propulsion Burnouts . | . . . . . . Robots Hopped . | . . . . . . Cave-ins Triggered . | . . . . . . Exploration Rate (%) 42 | 5 22 24 94 92 16 Regions Visited 5 Branch Regions 3 Pre-discovered Areas 3 | . . 1 1 1 . Known Exits Taken . | . . . . . . Unknown Exits Taken 5 | 1 1 1 1 1 . Scrap Searched 3 | . . . . 3 . Spaces Dug . | . . . . . . Terrain Destroyed 10 | . . . . . 10 Melee . | . . . . . . Projectile . | . . . . . . AOE 10 | . . . . . 10 Terrain Rammed . | . . . . . . Walls Destroyed . | . . . . . . Machines Disabled . | . . . . . . Actions | -11 -10 -10 -10 -9 -8 --------- Run | Scr Mat Min Exi Min Mat Total 2390 | 69 111 80 947 925 258 Wait 141 | . 7 5 . 96 33 Move 2170 | 55 101 74 943 819 178 Hop . | . . . . . . Pick Up 13 | 8 2 . 1 1 1 Fast Attach 13 | 4 1 . . 3 5 Attach 8 | 2 . . 1 . 5 Detach 2 | . . . . . 2 Swap . | . . . . . . Drop 9 | . . . 2 3 4 Fire 33 | . . 1 . 2 30 Melee . | . . . . . . Ram . | . . . . . . Kick 1 | . . . . 1 . Crush . | . . . . . . Escape Stasis . | . . . . . . Rewire . | . . . . . . Trap . | . . . . . . Miscellaneous . | . . . . . . Route ------- -11/Scrapyard -10/Materials -10/Mines -10/Exiles (discovered 2 exits: [*Min x2]) -9/Mines (discovered 2 exits: *Mat x2) -8/Materials History --------- Turn | Location | Event 5 | -11/Scrapyard | Discovered new exit (range 16) 76 | -11/Scrapyard | Entered Materials 186 | -10/Materials | Met 8R-AWN 200 | -10/Materials | Discovered new exit (range 8) 208 | -10/Materials | Entered Mines 209 | -10/Mines | Followed 8R-AWN into the Mines 260 | -10/Mines | Learned location of Mines (-9) 300 | -10/Mines | Discovered new exit (range 5) 303 | -10/Mines | Build established: Mutant 305 | -10/Mines | Entered Exiles 337 | -10/Exiles | Welcomed by 8R-AWN 357 | -10/Exiles | Met EX-HEX 423 | -10/Exiles | Met EX-DEC 457 | -10/Exiles | Learned location of Zion (-6) 500 | -10/Exiles | Discovered new exit (range 12) 621 | -10/Exiles | Visited The Gauntlet 843 | -10/Exiles | Met EX-BIN 872 | -10/Exiles | Aligned with FarCom system 873 | -10/Exiles | Given EX-Vault access code 1040 | -10/Exiles | Opened EX-Vault 1055 | -10/Exiles | Found Prototype Storage 1056 | -10/Exiles | Identified Superbattery 1132 | -10/Exiles | Warned to stay clear of 0b10 Research branches 1212 | -10/Exiles | Learned about 8R-AWN's background 1243 | -10/Exiles | Discovered new exit (range 14) 1440 | -10/Exiles | Left Exiles lab with Superbattery 1440 | -10/Exiles | Entered Mines 1481 | -9/Mines | Met a Derelict bent on vengeance 2031 | -9/Mines | Assisted by bots powering up and referring to "LRC-V3" 2501 | -9/Mines | Discovered new exit (range 11) 2507 | -9/Mines | Discovered new exit (range 14) 2533 | -9/Mines | Entered Materials 2533 | -8/Materials | Accompanied by 3 allies 2533 | -8/Materials | Evolved 4 slots: Utility x2, Weapon x2 2746 | -8/Materials | Garrison activated, responded to threat 2864 | -8/Materials | Garrison activated, responded to threat 2884 | -8/Materials | Lost 5 parts (1p1n3w) 2905 | -8/Materials | Core integrity fell below 50% 2937 | -8/Materials | Core integrity fell below 20% 2954 | -8/Materials | Destroyed by Y-45 Defender with Beam Rifle Last Messages --------------- 02939_ Backup Propulsion I destroyed. 02943_ Connecting with Repair Station... >>Refit Scanning configuration... Attaching: Backup Power I x1 Backup Propulsion I x1 02943_ Backup Propulsion I destroyed. 02944_ Y-45 Defender heat spikes uncontrollably. 02945_ Y-45 Defender heat damages Hvy. Assault Rifle. 02946_ Melted Lgt. Treads. 02949_ Critical hit (Burn: +37). 02950_ Y-45 Defender heat damages Imp. Ion Engine. 02951_ Y-45 Defender heat damages core (-5). 02951_ Lgt. Armor Plating melted. 02951_ Beam Rifle melted. 02951_ Lgt. Treads melted. 02951_ Imp. Ion Engine melted. 02951_ Heat Sink melted. 02952_ G-47 Trooper destroyed. Map ----- +----------------------------------------------------+ | ?????????###=*== #???????????????????????????? | | ??????????##% =*= #???????????????????????????? | | ????########=%%*= #???????????????????????????? | | ??? !%!!!%|= #???????????????????????????? | | ??? [%=|[%= #???????????????????????????? | | ??? """ = ! #???????????????????????????? | | ?????"" ] ###/####/########??????????????????????? | | ?????"" ? ?# #??????????????????????? | | ???? ?# ?# #??????????????????????? | | ???? ??# ! ?# #??????????????????????? | | ??? """ ??# ?# #????? ????????????????? | | ?? """???# ####/######?? ???????????????? | | ?????"????# ?# ##### ???????????????? | | ??????????+ ?# T" [ ??????????????? | | ??????????? ?# " ??????????????? | | ????????????###??# ??????????????? | | ?????????????????# ##### ???????????????? | | ??????T" ####### ##????? ????????????????? | | ??????"" #????????###???????????????? | | ??? ####### #??????????????????????????? | | ??????????????????# #??????????????????????????? | | ??????????????????# Y#??????????????????????????? | | ??????????????????# Y########???????????????????? | | ??????????????????# # """ #???????????????????? | | ??????????????????# g "R" #???????????????????? | | ??????????????????# #g"@" #???????????????????? | | ??????????????????# #*g% #???????????????????? | | ????????????????? # g= #???????????????????? | | ??????????????? # Y #???????????????????? | | ?????????????? ########???????????????????? | | ???????????? #####+###??????????????????????????? | | ??????????? ?????? ?????????????????????????????? | | ?????????? ????????"?????????????????????????????? | | ???????????????????"?????????????????????????????? | | ???????????o????????????????????????????w????????? | | ?????????????????????????????????????????????????? | | ?????????????????????????????????????????????????? | | ?????????????????????????????????????????????????? | | ?????????????????????????????????????????????????? | | ?????????????????????????????????????????????????? | | ?????????????????????????????????????????????????? | | ?????????????????????????????????????????????????? | | ?????????????????????????????????????????????????? | | ?????????????????????????????????????????????????? | | ?????????????????????????????????????????????????? | | ?????????????????????????????????????????????????? | | ?????????????????????????????????????????????????? | | ?????????????????????????????????????????????????? | | ?????????????????????????????????????????????????? | | ?????????????????????????????????????????????????? | +----------------------------------------------------+ Best States ------------- Heat Dissipation 31 Energy Generation 10 Energy Capacity 1625 Matter Stores 300 Matter Capacity 300 Sight Range 16 Robot Scan Range 15 Terrain Scan Density 10 Utility Shielding 33 Evasion (%) 55 Recoil Reduction 2 Item Schematics ----------------- None Robot Schematics ------------------ None Fabricated ------------ Nothing Alien Tech Used ----------------- None Achievements -------------- None Challenges ------------ None Game ------ Seed ThiefNullCloak Manual? 0 Play Time 00:41:20 Cumulative 9.7 hours Start 2022.04.24 @ 16:03:12 End 2022.04.24 @ 16:44:55 Sessions 1 Manual Loads 0 Difficulty Rogue Special Mode None Game No. 16 Rogue 16 Adventurer 0 Explorer 0 Win Type - Total 0 Types 0/0/0/0/0/0/0/0/0 Lore% 13 Gallery% 15 Achievement% 13 Wizard Run 0 Options --------- ASCII 0 Keyboard 0 Movement Numpad Keybinds 0 Fullscreen 2 Font 24/Smallcaps Map View 76x50 Tactical HUD 1 Map Filters NONE Filters NONE Steam 1 RUN: 049a5883-4f6e-4685-86f4-2d0acf5fcf3b